bitfinex-derivatives/quotes_SOLF0:USTF0_20250106
["timestamp","ask_amount","ask_price","bid_price","bid_amount"]
[1736197798845,2.2872,218.46,218.45,2.62]
[1736197799145,5.27991304,218.46,218.45,2.62]
[1736197800245,2.99271304,218.46,218.41,6.37358403]
[1736197800447,2.2876,218.42,218.41,6.37358403]
[1736197800649,9.36093675,218.42,218.41,6.37358403]
[1736197800849,12.35364979,218.42,218.41,1.15415174]
[1736197801154,2.2877,218.41,218.4,19.03631684]
[1736197801454,2.2877,218.41,218.4,12.01961684]
[1736197801655,2.2877,218.41,218.35,28.11992414]
[1736197801656,2.99271304,218.41,218.35,28.11992414]
[1736197801855,7.07333675,218.4,218.35,2.62]
[1736197802052,2.2883,218.36,218.35,2.62]
[1736197802252,2.99271304,218.36,218.33,13.41863146]
[1736197802654,1.5007,218.44,218.33,6.34529471]
[1736197802655,2.2885,218.34,218.33,6.34529471]
[1736197802949,2.99271304,218.34,218.3,2.62]
[1736197803155,2.99271304,218.34,218.29,8.60133675]
[1736197803359,2.2888,218.32,218.29,11.22133675]
[1736197803954,2.62,218.41,218.31,7.07333675]
[1736197804156,4.1207,218.44,218.35,7.07333675]
[1736197804346,2.2883,218.36,218.35,7.07333675]
[1736197804757,5.25283422,218.36,218.35,7.07333675]
[1736197806761,2.2883,218.36,218.35,7.07333675]
[1736197807258,5.24674333,218.36,218.35,7.07333675]
[1736197807456,2.95844333,218.36,218.35,7.07333675]
[1736197807653,2.95844333,218.36,218.35,9.69333675]
[1736197808159,2.2882,218.38,218.35,9.69333675]
[1736197808360,2.2882,218.38,218.37,7.07333675]
[1736197808858,5.24422692,218.38,218.37,7.07333675]
[1736197809061,2.2882,218.38,218.37,7.07333675]
[1736197809360,5.24422692,218.38,218.37,7.07333675]
[1736197810561,5.24422692,218.38,218.35,9.69333675]
[1736197811057,2.2882,218.38,218.35,9.69333675]
[1736197811559,2.2882,218.37,218.35,9.69333675]
[1736197813061,2.2883,218.36,218.35,9.69333675]
[1736197813257,2.2883,218.36,218.35,2.62]
[1736197813864,4.1207,218.44,218.3,1.4219]
[1736197813865,2.2886,218.33,218.32,2.62]
[1736197815260,4.1207,218.44,218.32,4.9087]
[1736197815566,7.07333675,218.41,218.35,7.07333675]
[1736197815862,2.9524912,218.4,218.35,7.07333675]
[1736197816165,2.2883,218.37,218.35,7.07333675]
[1736197816664,7.07333675,218.41,218.35,7.07333675]
[1736197817259,2.2883,218.36,218.34,2.62]
[1736197818465,2.2881,218.38,218.35,7.07333675]
[1736197818665,2.95243662,218.37,218.35,7.07333675]
[1736197818869,2.2881,218.38,218.35,7.07333675]
[1736197819058,1.5525,218.57,218.35,7.07333675]
[1736197819365,7.07333675,218.49,218.41,7.07333675]
[1736197819565,2.95348821,218.46,218.41,9.69333675]
[1736197819968,2.95348821,218.45,218.41,9.69333675]
[1736197820368,2.2875,218.44,218.41,9.69333675]
[1736197820568,2.95348821,218.48,218.43,7.07333675]
[1736197820863,2.95348821,218.47,218.45,7.07333675]
[1736197821169,2.95512354,218.51,218.46,2.62]
[1736197821369,2.95512354,218.51,218.5,7.07333675]
[1736197821668,5.24182354,218.51,218.5,7.07333675]
[1736197822067,5.24182354,218.51,218.46,2.62]
[1736197822068,5.24182354,218.51,218.48,7.07333675]
[1736197822267,2.2867,218.51,218.48,7.07333675]
[1736197822962,2.2868,218.5,218.48,7.07333675]
[1736197824471,2.2868,218.5,218.46,2.62]
[1736197824672,2.2869,218.49,218.48,7.07333675]
[1736197827976,7.07333675,218.53,218.46,2.62]
[1736197828177,2.2871,218.47,218.46,9.69333675]
[1736197829378,2.2873,218.46,218.44,7.07333675]
[1736197829579,2.2873,218.46,218.45,2.62]
[1736197829779,7.07333675,218.5,218.45,2.62]
[1736197829980,2.2873,218.46,218.45,2.62]
[1736197830277,7.07333675,218.5,218.45,2.62]
[1736197831180,7.07333675,218.52,218.46,7.07333675]
[1736197831783,2.2873,218.48,218.46,7.07333675]
[1736197832284,7.07333675,218.52,218.46,7.07333675]
[1736197832585,2.2872,218.48,218.46,7.07333675]
[1736197833381,2.93205621,218.47,218.46,7.07333675]
[1736197838990,2.93205621,218.47,218.46,9.36063675]
[1736197842988,8.79907197,218.62,218.53,2.2865]
[1736197843193,7.07333675,218.58,218.53,2.2865]
[1736197843391,2.2863,218.57,218.53,9.35983675]
[1736197843597,7.07333675,218.58,218.53,9.35983675]
[1736197844093,2.2864,218.55,218.53,9.35983675]
[1736197844297,2.2864,218.55,218.53,2.2865]
[1736197844697,2.2864,218.55,218.52,2.62]
[1736197844899,2.2864,218.55,218.52,4.9067]
[1736197845898,2.2864,218.55,218.52,2.62]
[1736197846499,2.2865,218.54,218.52,2.62]
[1736197847097,2.2864,218.55,218.52,4.9067]
[1736197849001,2.2865,218.54,218.52,2.62]
[1736197850696,2.2866,218.53,218.52,2.62]
[1736197855401,5.19209195,218.53,218.52,2.62]
[1736197856201,2.90549195,218.53,218.52,4.9067]
[1736197856401,2.9752,218.63,218.52,2.62]
[1736197856595,8.57503675,218.63,218.57,7.07333675]
[1736197856802,2.2859,218.6,218.57,11.97953675]
[1736197858004,2.286,218.59,218.57,9.69333675]
[1736197858303,2.286,218.59,218.57,2.62]
[1736197859000,2.2861,218.58,218.57,2.62]
[1736197870008,2.2859,218.6,218.57,2.62]
[1736197870311,7.07333675,218.68,218.59,7.07333675]
[1736197870512,7.07333675,218.68,218.62,7.07333675]
[1736197870714,7.07333675,218.68,218.63,2.62]
[1736197871408,2.2854,218.64,218.63,2.62]
[1736197872006,7.07333675,218.64,218.54,25.3443428]
[1736197872212,7.07333675,218.62,218.55,9.69333675]
[1736197872511,7.07333675,218.6,218.55,9.69333675]
[1736197872913,2.2863,218.56,218.55,2.62]
[1736197878311,7.07333675,218.56,218.51,1.4751]
[1736197878515,2.2868,218.51,218.5,6.35897285]
[1736197878708,2.2868,218.51,218.5,8.97897285]
[1736197879117,2.2867,218.52,218.5,2.62]
[1736197880514,2.2866,218.53,218.5,2.62]
[1736197880814,7.07333675,218.54,218.5,2.62]
[1736197881314,2.2866,218.53,218.5,9.69333675]
[1736197882516,2.2867,218.52,218.5,9.69333675]
[1736197883206,7.07333675,218.56,218.5,2.62]
[1736197883411,2.2868,218.51,218.5,2.62]
[1736197883813,7.07333675,218.54,218.48,6.35897285]
[1736197884015,2.287,218.49,218.48,6.35897285]
[1736197884215,2.287,218.49,218.48,8.97897285]
[1736197884414,2.287,218.49,218.48,2.62]
[1736197890020,2.2874,218.46,218.45,2.62]
[1736197898125,2.2874,218.46,218.44,7.07333675]
[1736197898324,2.2874,218.46,218.45,2.62]
[1736197901328,2.2874,218.45,218.44,7.07333675]
[1736197901531,2.2874,218.45,218.44,9.69333675]
[1736197905831,2.2874,218.45,218.44,2.62]
[1736197911726,7.07333675,218.48,218.39,4.4695]
[1736197911923,2.2879,218.41,218.4,2.62]
[1736197917134,2.2879,218.41,218.39,2.62]
[1736197919353,2.2879,218.4,218.39,2.62]
[1736197919550,7.07333675,218.44,218.37,6.35897285]
[1736197919754,7.07333675,218.42,218.37,8.97897285]
[1736197919947,2.2882,218.38,218.37,8.97897285]
[1736197920353,7.07333675,218.48,218.37,8.97897285]
[1736197920655,1.4955,218.51,218.45,7.07333675]
[1736197920841,6.25511939,218.58,218.49,7.07333675]
[1736197921046,2.2865,218.54,218.51,7.07333675]
[1736197921251,2.2865,218.54,218.53,7.07333675]
[1736197921449,2.2866,218.53,218.51,7.07333675]
[1736197923453,8.62204901,218.64,218.51,7.07333675]
[1736197923651,2.2858,218.61,218.58,7.07333675]
[1736197924152,1.4684,218.65,218.58,7.07333675]
[1736197924352,2.2854,218.65,218.62,7.07333675]
[1736197924649,2.2854,218.65,218.62,9.69333675]
[1736197925247,2.2851,218.68,218.64,7.07333675]
[1736197925446,17.15878576,218.72,218.64,7.07333675]
[1736197925646,8.53673675,218.72,218.64,7.07333675]
[1736197925853,2.285,218.69,218.64,7.07333675]
[1736197926250,8.53673675,218.72,218.64,7.07333675]
[1736197926549,2.285,218.68,218.64,7.07333675]
[1736197927052,2.2852,218.67,218.64,7.07333675]
[1736197927654,2.2852,218.66,218.64,7.07333675]
[1736197931158,1.4634,218.72,218.64,7.07333675]
[1736197931362,11.22949877,218.82,218.68,7.07333675]
[1736197931557,7.07333675,218.77,218.7,7.07333675]
[1736197931854,10.80395713,218.75,218.7,7.07333675]
[1736197932060,10.80395713,218.75,218.69,2.62]
[1736197932559,2.2847,218.72,218.69,2.62]
[1736197934261,2.2847,218.72,218.7,7.07333675]
[1736197934556,10.80395713,218.75,218.7,7.07333675]
[1736197934760,2.2847,218.71,218.69,2.62]
[1736197943266,7.07333675,218.7,218.52,6.35897285]
[1736197943467,7.07333675,218.64,218.54,7.0828]
[1736197943671,7.07333675,218.64,218.58,7.07333675]
[1736197944064,7.07333675,218.64,218.59,2.62]
[1736197944366,7.07333675,218.64,218.6,2.62]
[1736197944567,2.2856,218.63,218.6,2.62]
[1736197945363,9.35873675,218.64,218.6,2.62]
[1736197945568,9.35873675,218.64,218.6,4.9058]
[1736197947465,9.35873675,218.64,218.61,2.2857]
[1736197949272,7.07333675,218.62,218.61,2.62]
[1736197950470,9.35893675,218.62,218.61,2.62]
[1736197951172,2.2856,218.62,218.61,2.62]
[1736197951573,2.2856,218.62,218.58,2.286]
[1736197951872,2.2856,218.62,218.59,2.62]
[1736197955177,2.2856,218.62,218.58,2.286]
[1736197955376,2.2856,218.62,218.59,2.62]
[1736197956073,2.2858,218.61,218.59,2.62]
[1736197957175,1.4904,218.7,218.59,9.69333675]
[1736197957378,7.07333675,218.68,218.61,7.07333675]
[1736197957878,2.2853,218.66,218.62,2.2856]
[1736197958280,8.29942038,218.75,218.62,2.2856]
[1736197958578,7.07333675,218.69,218.62,2.2856]
[1736197958969,7.07333675,218.67,218.61,9.35903675]
[1736197960478,2.2854,218.64,218.61,9.35903675]
[1736197961977,2.2856,218.63,218.61,9.35903675]
[1736197962381,2.2856,218.63,218.6,2.2858]
[1736197963977,2.2856,218.63,218.61,7.07333675]
[1736197965883,7.07333675,218.64,218.54,10.82177285]
[1736197966084,2.286,218.59,218.57,2.2862]
[1736197966975,2.286,218.59,218.56,9.35953675]
[1736197968277,2.2856,218.63,218.58,7.07333675]
[1736197968577,7.07333675,218.66,218.58,7.07333675]
[1736197969377,2.2859,218.6,218.58,7.07333675]
[1736197970576,2.286,218.59,218.58,7.07333675]
[1736197971788,7.07333675,218.62,218.54,7.90897285]
[1736197972083,7.07333675,218.6,218.55,2.62]
[1736197972777,2.286,218.59,218.55,2.62]
[1736197972975,7.07333675,218.6,218.55,2.62]
[1736197973885,2.2862,218.57,218.55,2.62]
[1736197977487,2.2863,218.56,218.55,2.62]
[1736197977683,2.2863,218.56,218.55,9.69333675]
[1736197978392,2.2863,218.56,218.55,7.07333675]
[1736197978587,2.2863,218.56,218.55,9.69333675]
[1736197980191,2.2863,218.56,218.55,2.62]
[1736197980589,2.2863,218.56,218.55,9.69333675]
[1736197981292,2.2862,218.58,218.55,9.69333675]
[1736197981491,7.07333675,218.6,218.55,9.69333675]
[1736197981888,2.2863,218.57,218.55,9.69333675]
[1736197982392,7.07333675,218.6,218.55,9.69333675]
[1736197982793,2.2863,218.56,218.55,9.69333675]
[1736197983397,7.07333675,218.56,218.5,42.09187069]
[1736197983592,7.07333675,218.56,218.53,2.62]
[1736197984298,2.2868,218.52,218.49,59.43333675]
[1736197984499,2.2868,218.52,218.5,2.62]
[1736197985201,2.2866,218.53,218.5,2.62]
[1736197985404,7.07333675,218.54,218.5,2.62]
[1736197986001,7.07333675,218.54,218.47,6.35897285]
[1736197986298,7.07333675,218.52,218.48,2.62]
[1736197986496,2.287,218.49,218.48,2.62]
[1736197989599,1.5146,218.57,218.48,2.62]
[1736197989799,8.58793675,218.57,218.51,7.07333675]
[1736197990004,2.62,218.64,218.48,2.62]
[1736197990195,7.07333675,218.59,218.52,7.07333675]
[1736197990498,7.07333675,218.59,218.53,2.62]
[1736197990707,7.07333675,218.59,218.53,9.69333675]
[1736197990895,10.10073675,218.63,218.55,7.07333675]
[1736197991103,3.0274,218.63,218.57,7.07333675]
[1736197991398,1.5573,218.63,218.57,9.35953675]
[1736197991607,2.2858,218.61,218.53,2.62]
[1736197992001,2.2854,218.65,218.53,2.62]
[1736197992203,2.2854,218.65,218.63,7.07333675]
[1736197992605,2.2854,218.64,218.63,7.07333675]
[1736197995102,2.2854,218.64,218.61,13.65821239]
[1736197996198,3.7313035,218.71,218.61,13.65821239]
[1736197996405,3.7313035,218.71,218.62,2.2856]
[1736197997408,2.2852,218.66,218.62,2.2856]
[1736197998711,14.76951589,218.71,218.61,2.62]
[1736198000118,2.2857,218.62,218.61,2.62]
[1736198007020,11.03821239,218.67,218.58,2.62]
[1736198008519,2.286,218.59,218.58,2.62]
[1736198015525,8.64714849,218.7,218.53,7.07005993]
[1736198015526,7.07005993,218.6,218.53,7.07005993]
[1736198015725,7.07005993,218.58,218.54,2.62]
[1736198017128,7.07005993,218.6,218.54,2.62]
[1736198018430,2.2862,218.57,218.55,7.07005993]
[1736198019321,8.49915993,218.64,218.55,7.07005993]
[1736198019529,8.49915993,218.64,218.57,7.07005993]
[1736198020424,2.2861,218.59,218.57,7.07005993]
[1736198021529,2.2861,218.58,218.57,7.07005993]
[1736198022825,2.2861,218.58,218.57,9.69005993]
[1736198023330,2.2861,218.58,218.57,2.62]
[1736198035931,2.2865,218.54,218.53,7.07005993]
[1736198036133,2.2865,218.54,218.53,9.69005993]
[1736198037428,2.2864,218.56,218.53,9.69005993]
[1736198039433,2.2864,218.55,218.53,9.69005993]
[1736198040839,2.2865,218.54,218.53,2.62]
[1736198043740,7.07005993,218.59,218.53,2.62]
[1736198043935,2.2864,218.55,218.53,2.62]
[1736198044140,7.07005993,218.61,218.54,7.07005993]
[1736198044541,2.2864,218.55,218.54,7.07005993]
[1736198044938,2.2864,218.55,218.53,2.62]
[1736198047338,2.2864,218.55,218.54,2.62]
[1736198050540,7.07005993,218.57,218.49,7.89607285]
[1736198050746,2.2869,218.5,218.49,6.35897285]
[1736198050942,2.2869,218.5,218.49,8.97897285]
[1736198051542,2.2869,218.5,218.49,2.62]
[1736198053844,2.2869,218.5,218.49,9.69005993]
[1736198055847,2.2863,218.56,218.49,9.69005993]
[1736198056046,2.2863,218.56,218.54,7.07005993]
[1736198056247,7.07005993,218.6,218.54,9.69005993]
[1736198056443,2.2864,218.55,218.54,2.62]
[1736198057048,7.07005993,218.55,218.48,6.35897285]
[1736198057246,7.07005993,218.51,218.48,6.35897285]
[1736198057646,7.07005993,218.53,218.48,6.35897285]
[1736198057848,7.07005993,218.53,218.47,7.07005993]
[1736198058051,7.07005993,218.55,218.49,7.07005993]
[1736198058250,2.2867,218.52,218.49,7.07005993]
[1736198059552,7.07005993,218.57,218.49,7.07005993]
[1736198059755,2.2868,218.51,218.49,7.07005993]
[1736198060854,2.2869,218.5,218.49,9.69005993]
[1736198063357,2.2869,218.5,218.49,2.62]
[1736198066159,2.2874,218.46,218.44,8.59285993]
[1736198066361,2.2874,218.46,218.45,2.62]
[1736198067765,12.74534139,218.58,218.45,2.62]
[1736198067766,7.07005993,218.49,218.45,2.62]
[1736198067964,7.07005993,218.49,218.43,2.62]
[1736198068560,2.2875,218.44,218.43,2.62]
[1736198070164,2.2875,218.44,218.41,7.07005993]
[1736198070360,2.2876,218.43,218.42,2.62]
[1736198077872,2.2876,218.43,218.42,2.66]
[1736198085884,2.2879,218.41,218.4,2.66]
[1736198087180,2.2879,218.41,218.38,7.07005993]
[1736198087381,2.2879,218.41,218.39,2.66]
[1736198089780,7.07005993,218.45,218.39,2.66]
[1736198089984,2.2879,218.4,218.39,2.66]
[1736198091785,2.2879,218.4,218.38,7.07005993]
[1736198091985,1.5466,218.5,218.36,2.66]
[1736198091986,2.2882,218.38,218.36,2.66]
[1736198093887,2.2878,218.42,218.37,2.66]
[1736198094079,7.07005993,218.43,218.37,2.66]
[1736198095586,1.5466,218.5,218.37,9.73005993]
[1736198095587,2.2882,218.38,218.37,9.73005993]
[1736198095787,7.07005993,218.45,218.37,9.73005993]
[1736198096480,7.07005993,218.45,218.39,7.07005993]
[1736198097486,2.288,218.4,218.39,7.07005993]
[1736198097689,2.288,218.4,218.37,9.73005993]
[1736198097989,7.07005993,218.45,218.37,9.73005993]
[1736198098194,2.2877,218.43,218.37,9.73005993]
[1736198098495,7.07005993,218.41,218.34,4.9486]
[1736198098691,7.07005993,218.41,218.34,12.01865993]
[1736198098887,2.2882,218.38,218.34,12.01865993]
[1736198099291,2.2882,218.38,218.36,7.07005993]
[1736198099793,2.2882,218.38,218.34,4.9486]
[1736198099989,2.2882,218.38,218.34,12.01865993]
[1736198102296,2.2882,218.38,218.36,7.07005993]
[1736198102900,2.2884,218.36,218.34,9.73005993]
[1736198103599,2.2883,218.38,218.34,12.01865993]
[1736198103897,2.2883,218.38,218.36,7.07005993]
[1736198104400,2.2883,218.38,218.36,9.73005993]
[1736198106298,7.07005993,218.43,218.36,9.73005993]
[1736198106495,2.2883,218.37,218.36,9.73005993]
[1736198111304,10.17564139,218.47,218.36,9.73005993]
[1736198111599,2.2873,218.46,218.45,7.07005993]
[1736198113700,2.2873,218.47,218.45,7.07005993]
[1736198114205,7.07005993,218.52,218.45,7.07005993]
[1736198114404,2.2873,218.46,218.45,7.07005993]
[1736198116808,2.287,218.5,218.45,9.35745993]
[1736198117008,7.07005993,218.54,218.48,7.07005993]
[1736198118306,2.287,218.49,218.48,7.07005993]
[1736198118704,2.287,218.49,218.48,9.73005993]
[1736198121206,7.07005993,218.54,218.48,9.73005993]
[1736198121407,2.2869,218.5,218.48,9.73005993]
[1736198123509,2.287,218.49,218.48,9.73005993]
[1736198124607,2.287,218.49,218.48,2.66]
[1736198125207,2.2876,218.43,218.4,8.64687285]
[1736198125402,7.07005993,218.49,218.42,7.07005993]
[1736198126611,2.2875,218.45,218.42,9.35775993]
[1736198128710,7.07005993,218.51,218.44,7.07005993]
[1736198128904,7.07005993,218.53,218.46,7.07005993]
[1736198129109,7.07005993,218.55,218.48,7.07005993]
[1736198129507,2.287,218.49,218.48,7.07005993]
[1736198133722,3.81349659,218.56,218.48,7.07005993]
[1736198133921,3.81349659,218.56,218.51,7.07005993]
[1736198134121,3.81349659,218.56,218.52,2.68]
[1736198134318,2.2866,218.53,218.52,2.68]
[1736198134518,3.81349659,218.56,218.52,2.68]
[1736198134724,7.07005993,218.61,218.54,7.07005993]
[1736198134916,7.07005993,218.63,218.56,7.07005993]
[1736198135126,7.07005993,218.66,218.58,7.07005993]
[1736198135415,7.07005993,218.66,218.6,7.07005993]
[1736198135722,2.2857,218.61,218.6,7.07005993]
[1736198138520,2.2859,218.6,218.58,9.75005993]
[1736198142725,2.286,218.59,218.54,2.2864]
[1736198142919,7.07005993,218.6,218.55,2.68]
[1736198143126,7.07005993,218.6,218.56,2.68]
[1736198143828,2.2862,218.57,218.56,2.68]
[1736198144121,2.2862,218.57,218.53,7.07005993]
[1736198144428,2.2862,218.57,218.54,2.68]
[1736198145525,2.2863,218.56,218.54,2.68]
[1736198146330,2.2863,218.56,218.55,7.07005993]
[1736198146525,2.2862,218.57,218.55,7.07005993]
[1736198152430,7.07005993,218.64,218.55,7.07005993]
[1736198152626,7.07005993,218.67,218.61,7.07005993]
[1736198153425,2.2856,218.62,218.61,7.07005993]
[1736198153932,7.07005993,218.65,218.6,2.68]
[1736198154133,2.2858,218.61,218.6,2.68]
[1736198160540,7.07005993,218.63,218.58,7.07005993]
[1736198160837,2.286,218.59,218.58,7.07005993]
[1736198161028,2.286,218.59,218.58,9.75005993]
[1736198161834,2.286,218.59,218.58,2.68]
[1736198165233,2.286,218.59,218.56,7.07005993]
[1736198165434,2.286,218.59,218.57,2.66]
[1736198168438,7.07005993,218.61,218.57,2.66]
[1736198168642,2.2861,218.58,218.57,2.66]
[1736198168944,7.07005993,218.59,218.52,1.4114]
[1736198169144,7.07005993,218.54,218.52,7.77037285]
[1736198169443,2.2866,218.53,218.52,9.01897285]
[1736198169845,2.2866,218.53,218.52,6.35897285]
[1736198170046,2.2866,218.53,218.52,9.01897285]
[1736198170548,2.2866,218.53,218.52,2.66]
[1736198171748,2.2866,218.53,218.5,2.2869]
[1736198171947,2.2866,218.53,218.51,2.66]
[1736198174849,2.2866,218.53,218.51,9.73005993]
[1736198175550,8.64069152,218.63,218.51,9.73005993]
[1736198175745,8.64069152,218.63,218.59,7.07005993]
[1736198175945,7.07005993,218.66,218.59,9.73005993]
[1736198176848,7.07005993,218.64,218.59,9.73005993]
[1736198177551,2.2859,218.6,218.59,9.73005993]
[1736198178548,2.2859,218.6,218.59,2.66]
[1736198183453,2.2859,218.6,218.59,9.73005993]
[1736198187858,2.2859,218.6,218.59,2.66]
[1736198194671,7.07005993,218.62,218.55,7.07005993]
[1736198194867,2.2862,218.58,218.56,2.62]
[1736198196370,7.07005993,218.66,218.57,7.07005993]
[1736198196571,7.07005993,218.66,218.59,7.07005993]
[1736198196974,7.07005993,218.66,218.6,2.62]
[1736198197376,7.07005993,218.64,218.6,2.62]
[1736198197876,2.2857,218.61,218.6,2.62]
[1736198198777,7.07005993,218.62,218.53,1.4712]
[1736198198978,2.2864,218.55,218.54,9.69005993]
[1736198200976,7.07005993,218.58,218.5,7.07005993]
[1736198201174,7.07005993,218.58,218.51,2.62]
[1736198201374,7.07005993,218.56,218.51,2.62]
[1736198202279,2.2867,218.53,218.51,2.62]
[1736198203483,2.2867,218.53,218.52,7.07005993]
[1736198221995,2.287,218.49,218.48,6.35897285]
[1736198223201,2.2871,218.48,218.47,7.07005993]
[1736198224598,2.2871,218.48,218.47,9.69005993]
[1736198226803,2.2871,218.48,218.47,2.62]
[1736198227499,1.5038,218.57,218.47,9.69005993]
[1736198227500,2.287,218.5,218.47,9.69005993]
[1736198227800,7.07005993,218.55,218.49,7.07005993]
[1736198228006,2.2869,218.51,218.48,2.287]
[1736198228303,7.07005993,218.55,218.48,7.07005993]
[1736198229301,2.2866,218.53,218.48,7.07005993]
[1736198229502,7.07005993,218.55,218.48,7.07005993]
[1736198230204,2.2869,218.5,218.48,7.07005993]
[1736198236205,7.07005993,218.55,218.48,7.07005993]
[1736198236407,2.287,218.49,218.48,7.07005993]
[1736198250414,2.2871,218.48,218.44,7.07005993]
[1736198250611,7.07005993,218.51,218.45,2.62]
[1736198251417,2.2873,218.46,218.45,2.62]
[1736198252716,1.5328,218.56,218.45,2.62]
[1736198253029,1.5328,218.56,218.48,7.07005993]
[1736198253030,7.07005993,218.55,218.48,7.07005993]
[1736198254525,2.287,218.5,218.48,7.07005993]
[1736198255626,7.07005993,218.53,218.45,8.97897285]
[1736198255821,7.07005993,218.53,218.45,16.04903278]
[1736198256027,7.07005993,218.55,218.49,7.07005993]
[1736198256522,1.5328,218.56,218.49,7.07005993]
[1736198256924,2.2869,218.51,218.49,7.07005993]
[1736198257324,2.2869,218.51,218.5,2.62]
[1736198258225,1.4047,218.58,218.5,2.62]
[1736198258420,2.2865,218.55,218.51,2.2868]
[1736198258627,2.2865,218.55,218.54,7.07005993]
[1736198258928,11.394106,218.61,218.51,2.2868]
[1736198259126,11.394106,218.61,218.54,7.07005993]
[1736198259426,11.394106,218.61,218.51,2.2868]
[1736198259622,7.07005993,218.57,218.5,9.69005993]
[1736198259926,7.07005993,218.55,218.5,2.62]
[1736198260132,2.2868,218.51,218.5,2.62]
[1736198261728,2.2871,218.48,218.46,2.62]
[1736198262323,7.07005993,218.51,218.46,2.62]
[1736198263128,2.2872,218.47,218.46,2.62]
[1736198264832,2.2871,218.48,218.46,2.62]
[1736198265632,2.2871,218.48,218.47,7.07005993]
[1736198267039,8.64069152,218.57,218.47,7.07005993]
[1736198267340,15.71075145,218.57,218.49,7.07005993]
[1736198267639,7.07005993,218.57,218.49,7.07005993]
[1736198268443,2.2868,218.51,218.49,7.07005993]
[1736198272144,2.2867,218.52,218.49,7.07005993]
[1736198272344,2.2867,218.52,218.51,7.07005993]
[1736198272643,2.2867,218.52,218.51,9.69005993]
[1736198275541,8.64069152,218.59,218.51,9.69005993]
[1736198275745,2.2865,218.54,218.51,11.97685993]
[1736198276053,8.64069152,218.59,218.53,7.07005993]
[1736198276351,2.2862,218.58,218.56,7.07005993]
[1736198276647,2.2862,218.58,218.56,9.69005993]
[1736198277147,2.2862,218.57,218.56,9.69005993]
[1736198277349,4.32404607,218.61,218.56,9.69005993]
[1736198277752,4.32404607,218.61,218.6,7.07005993]
[1736198278140,7.07005993,218.68,218.6,7.07005993]
[1736198278345,15.71075145,218.68,218.61,2.62]
[1736198278543,7.07005993,218.68,218.61,2.62]
[1736198279455,2.2855,218.63,218.61,2.62]
[1736198279651,4.4285,218.7,218.61,2.62]
[1736198279652,7.07005993,218.66,218.61,2.62]
[1736198280547,8.64069152,218.69,218.61,2.62]
[1736198280847,7.07005993,218.65,218.61,2.62]
[1736198281449,2.2856,218.62,218.61,2.62]
[1736198284256,2.2861,218.58,218.57,2.62]
[1736198287850,2.2861,218.58,218.57,9.69005993]
[1736198288055,2.286,218.59,218.57,9.69005993]
[1736198289761,7.07005993,218.63,218.57,9.69005993]
[1736198290055,2.2861,218.58,218.57,9.69005993]
[1736198291653,2.2861,218.58,218.57,7.07005993]
[1736198291854,2.2863,218.56,218.55,7.07005993]
[1736198292058,2.2863,218.56,218.55,9.69005993]
[1736198294955,2.2862,218.57,218.55,9.69005993]
[1736198301761,2.2863,218.56,218.55,9.69005993]
[1736198304766,2.2863,218.56,218.55,2.62]
[1736198312070,2.2862,218.57,218.55,2.62]
[1736198319576,2.2862,218.57,218.55,9.69005993]
[1736198328692,2.2863,218.56,218.55,9.69005993]
[1736198331791,2.2863,218.56,218.55,2.62]
[1736198332691,7.07005993,218.6,218.52,25.3443428]
[1736198332893,2.2866,218.53,218.52,6.35897285]
[1736198333194,2.2866,218.53,218.52,8.97897285]
[1736198333789,2.2866,218.53,218.52,2.62]
[1736198339087,2.2866,218.53,218.51,2.62]
[1736198343993,7.07005993,218.56,218.49,25.3443428]
[1736198344201,7.07005993,218.54,218.49,25.3443428]
[1736198344401,7.07005993,218.54,218.49,27.9643428]
[1736198344901,7.07005993,218.54,218.49,2.62]
[1736198345394,2.2869,218.5,218.49,2.62]
[1736198349107,2.2868,218.51,218.48,2.62]
[1736198349305,7.07005993,218.52,218.48,2.62]
[1736198350403,7.07005993,218.52,218.45,34.70180273]
[1736198350404,2.2872,218.48,218.45,34.70180273]